[Event "Turkish Club Cup 2019"]
[Site "Konya"]
[Date "2019.07.19"]
[Round "6"]
[White "Demir, Ugur"]
[Black "Anil, Ali Fazil"]
[Result "1/2-1/2"]
[ECO "B53"]
[WhiteElo "1763"]
[BlackElo "1999"]
[Annotator "NA"]
[PlyCount "139"]
[EventDate "2019.07.16"]
[EventType "team-tourn"]
[EventCountry "TUR"]
[SourceTitle "playchess.com"]
[Source "ChessBase"]
[SourceQuality "1"]
[TimeControl "5400+30"]

1. e4 {[%emt 0:00:30]} c5 {[%emt 0:00:30]} 2. Nf3 {[%emt 0:00:30]} d6 {[%emt 0:00:00]} 3. d4 {[%emt 0:01:30]} cxd4 {[%emt 0:00:00]} 4. Qxd4 {[%emt 0:00:30]} Nc6 {[%emt 0:02:30]} 5. Bb5 {[%emt 0:00:30]} Bd7 {[%emt 0:00:00]} 6. Bxc6 {[%emt 0:00:00]} Bxc6 {[%emt 0:00:00]} 7. Nc3 {[%emt 0:00:00]} Nf6 {[%emt 0:00:30]} 8. Bg5 {[%emt 0:00:00]} e6 {[%emt 0:05:30]} 9. O-O-O {[%emt 0:00:00]} Be7 {[%emt 0:01:30]} 10. Bxf6 {[%emt 0:01:30]} gxf6 {[%emt 0:00:00]} 11. Rhe1 {[%emt 0:02:30]} Qa5 {[%emt 0:02:00]} 12. Nd2 {[%emt 0:05:30]} Qc5 {[%emt 0:14:30]} 13. Qxc5 {[%emt 0:05:30]} dxc5 {[%emt 0:00:30]} 14. Nc4 {[%emt 0:01:30]} Bd8 {[%emt 0:06:30]} 15. Nd6+ {[%emt 0:17:30]} Ke7 {[%emt 0:01:30]} 16. g3 {[%emt 0:08:30]} a6 {[%emt 0:02:30]} 17. f4 {[%emt 0:06:30]} Bc7 {[%emt 0:04:30]} 18. e5 {[%emt 0:06:30]} fxe5 {[%emt 0:01:30]} 19. fxe5 {[%emt 0:00:00]} Rhg8 {[%emt 0:06:30]} 20. Nce4 {[%emt 0:05:00]} b6 {[%emt 0:08:30]} 21. Rf1 {[%emt 0:06:30]} Raf8 {[%emt 0:06:30]} 22. Nf6 {[%emt 0:03:30]} Rg7 {[%emt 0:03:30]} 23. g4 {[%emt 0:03:30]} h6 {[%emt 0:00:30]} 24. h4 {[%emt 0:00:30]} Rd8 {[%emt 0:01:30]} 25. g5 {[%emt 0:05:12]} hxg5 {[%emt 0:03:30]} 26. h5 {[%emt 0:01:15]} Rh8 {[%emt 0:04:30]} 27. h6 {[%emt 0:02:48]} Rgh7 {[%emt 0:03:30]} 28. Nxh7 {[%emt 0:02:58]} Rxh7 {[%emt 0:00:30]} 29. Rg1 {[%emt 0:05:27]} Bf3 {[%emt 0:04:11]} 30. Rxg5 {[%emt 0:07:10]} Bxd1 {[%emt 0:03:51]} 31. Rg7 {[%emt 0:00:23]} Bxc2 {[%emt 0:00:56]} 32. Kxc2 {[%emt 0:01:03]} Rxh6 {[%emt 0:00:18]} 33. Rxf7+ {[%emt 0:01:05]} Kd8 {[%emt 0:00:15]} 34. Nb7+ {[%emt 0:00:44]} Kc8 {[%emt 0:00:12]} 35. Nd6+ {[%emt 0:00:17]} Bxd6 {[%emt 0:01:18]} 36. exd6 {[%emt 0:00:01]} e5 {[%emt 0:01:54]} 37. Rc7+ {[%emt 0:00:37]} Kd8 {[%emt 0:00:26]} 38. Rc6 {[%emt 0:00:30]} Kd7 {[%emt 0:00:17]} 39. Rxb6 {[%emt 0:00:00]} Rxd6 {[%emt 0:00:01]} 40. Rb7+ {[%emt 0:00:04]} Ke6 {[%emt 0:06:24]} 41. Rc7 {[%emt 0:00:40]} Kd5 {[%emt 0:00:18]} 42. Kd3 {[%emt 0:00:32]} Rb6 {[%emt 0:01:13]} 43. b3 {[%emt 0:00:30]} Rc6 {[%emt 0:01:47]} 44. Rd7+ {[%emt 0:00:44]} Ke6 {[%emt 0:00:23]} 45. Rh7 {[%emt 0:00:15]} Kd5 {[%emt 0:01:56]} 46. Rd7+ {[%emt 0:00:57]} Rd6 {[%emt 0:00:21]} 47. Rc7 {[%emt 0:00:14]} Rh6 {[%emt 0:00:18]} 48. Rd7+ {[%emt 0:00:42]} Kc6 {[%emt 0:00:49]} 49. Ra7 {[%emt 0:00:34]} Kb6 {[%emt 0:01:27]} 50. Re7 {[%emt 0:00:15]} Rh2 {[%emt 0:01:20]} 51. Re6+ {[%emt 0:00:29]} Kb5 {[%emt 0:01:14]} 52. a4+ {[%emt 0:00:57]} Kb4 {[%emt 0:00:28]} 53. Rb6+ {[%emt 0:00:41]} Ka3 {[%emt 0:00:16]} 54. Kc4 {[%emt 0:00:48]} Rc2+ {[%emt 0:01:40]} 55. Kd3 {[%emt 0:00:01]} Rc1 {[%emt 0:00:00]} 56. Kd2 {[%emt 0:01:08]} Rb1 {[%emt 0:00:20]} 57. Kc2 {[%emt 0:00:17]} Rb2+ {[%emt 0:00:12]} 58. Kc3 {[%emt 0:00:17]} e4 {[%emt 0:00:27]} 59. Rxa6 {[%emt 0:01:23]} Rxb3+ {[%emt 0:00:30]} 60. Kc4 {[%emt 0:00:30]} Kb2 {[%emt 0:00:30]} 61. Kxc5 {[%emt 0:00:30]} Kc2 {[%emt 0:00:30]} 62. Re6 {[%emt 0:00:30]} e3 {[%emt 0:00:30]} 63. a5 {[%emt 0:00:30]} Kd2 {[%emt 0:00:30]} 64. a6 {[%emt 0:00:00]} Ra3 {[%emt 0:00:39]} 65. Kb6 {[%emt 0:00:12]} Rb3+ {[%emt 0:00:42]} 66. Kc7 {[%emt 0:00:22]} e2 {[%emt 0:00:20]} 67. Rxe2+ {[%emt 0:00:29]} Kxe2 {[%emt 0:00:34]} 68. a7 {[%emt 0:00:08]} Ra3 {[%emt 0:00:00]} 69. Kb7 {[%emt 0:00:23]} Rxa7+ {[%emt 0:00:03]} 70. Kxa7 {[%emt 0:00:30]} 1/2-1/2

[Event "Turkish Club Cup 2019"]
[Site "Konya"]
[Date "2019.07.19"]
[Round "6"]
[White "Aslan, Onat Ugur"]
[Black "Kesgin, Halit Kaan"]
[Result "1/2-1/2"]
[ECO "A03"]
[WhiteElo "1747"]
[BlackElo "2104"]
[Annotator "NA"]
[PlyCount "108"]
[EventDate "2019.07.16"]
[EventType "team-tourn"]
[EventCountry "TUR"]
[SourceTitle "playchess.com"]
[Source "ChessBase"]
[SourceQuality "1"]
[TimeControl "5400+30"]

1. Nf3 {[%emt 0:01:30]} d5 {[%emt 0:00:30]} 2. b3 {[%emt 0:00:30]} Nf6 {[%emt 0:00:30]} 3. Bb2 {[%emt 0:00:00]} e6 {[%emt 0:01:30]} 4. e3 {[%emt 0:00:00]} Be7 {[%emt 0:00:30]} 5. Be2 {[%emt 0:06:30]} O-O {[%emt 0:00:30]} 6. O-O {[%emt 0:00:30]} c5 {[%emt 0:01:30]} 7. Ne5 {[%emt 0:03:30]} b6 {[%emt 0:04:30]} 8. f4 $11 {[%emt 0:00:30]} Bb7 {[%emt 0:02:30]} 9. Bf3 {[%emt 0:05:30]} Nbd7 {[%emt 0:01:30]} 10. Qe1 {[%emt 0:04:30]} Nxe5 {[%emt 0:12:30]} 11. fxe5 {[%emt 0:01:30]} Nd7 {[%emt 0:00:30]} 12. Bg4 {[%emt 0:04:30]} Qc7 {[%emt 0:05:30]} 13. Qg3 {[%emt 0:03:30]} d4 {[%emt 0:01:30]} 14. exd4 {[%emt 0:09:30]} cxd4 {[%emt 0:00:30]} 15. Bxd4 {[%emt 0:00:30]} Bc5 {[%emt 0:00:30]} 16. Bf2 {[%emt 0:09:30]} Qxe5 {[%emt 0:05:30]} 17. Qxe5 {[%emt 0:01:30]} Nxe5 {[%emt 0:00:30]} 18. Bxc5 {[%emt 0:05:30]} bxc5 {[%emt 0:00:00]} 19. Bf3 {[%emt 0:00:30]} Nxf3+ {[%emt 0:10:00]} 20. gxf3 {[%emt 0:00:30]} f5 {[%emt 0:00:30]} 21. Nc3 {[%emt 0:01:30]} e5 {[%emt 0:05:30]} 22. Rae1 {[%emt 0:01:30]} Rfe8 {[%emt 0:00:30]} 23. d3 {[%emt 0:00:30]} Bc6 {[%emt 0:02:30]} 24. a3 {[%emt 0:07:30]} Rab8 {[%emt 0:03:30]} 25. Kf2 {[%emt 0:01:30]} Kf7 {[%emt 0:02:30]} 26. Rb1 {[%emt 0:06:30]} a5 {[%emt 0:06:30]} 27. Na4 {[%emt 0:00:30]} c4 {[%emt 0:01:30]} 28. dxc4 {[%emt 0:09:59]} Bxa4 {[%emt 0:01:30]} 29. bxa4 {[%emt 0:00:30]} Rbc8 {[%emt 0:00:00]} 30. Rg1 {[%emt 0:04:02]} Re7 {[%emt 0:02:00]} 31. Rb5 {[%emt 0:06:41]} Rxc4 {[%emt 0:00:30]} 32. Rxa5 {[%emt 0:00:05]} Rxc2+ {[%emt 0:00:00]} 33. Kg3 {[%emt 0:00:19]} Rc3 {[%emt 0:04:00]} 34. Rb1 {[%emt 0:03:00]} g6 {[%emt 0:03:30]} 35. Rab5 {[%emt 0:02:41]} Rxa3 {[%emt 0:00:30]} 36. a5 {[%emt 0:00:06]} e4 {[%emt 0:01:30]} 37. R1b3 {[%emt 0:00:36]} Rxb3 {[%emt 0:01:30]} 38. Rxb3 {[%emt 0:00:02]} exf3 {[%emt 0:03:03]} 39. a6 {[%emt 0:00:40]} Re6 {[%emt 0:00:26]} 40. Ra3 {[%emt 0:00:54]} Re8 {[%emt 0:00:30]} 41. a7 {[%emt 0:00:37]} Ra8 {[%emt 0:00:00]} 42. Kxf3 {[%emt 0:00:00]} Ke6 {[%emt 0:01:54]} 43. Kf4 {[%emt 0:00:57]} Kd5 {[%emt 0:00:12]} 44. Kg5 {[%emt 0:00:44]} Kc6 {[%emt 0:00:18]} 45. Kh6 {[%emt 0:00:14]} Kb6 {[%emt 0:00:08]} 46. Rb3+ {[%emt 0:00:33]} Kc6 {[%emt 0:01:14]} 47. Kxh7 {[%emt 0:00:32]} Rxa7+ {[%emt 0:00:21]} 48. Kxg6 {[%emt 0:00:08]} f4 {[%emt 0:00:34]} 49. Rf3 {[%emt 0:00:20]} Ra4 {[%emt 0:00:22]} 50. h4 {[%emt 0:00:45]} Kd5 {[%emt 0:00:07]} 51. Kf5 {[%emt 0:00:14]} Kd6 {[%emt 0:00:22]} 52. Kf6 {[%emt 0:01:02]} Kd5 {[%emt 0:00:30]} 53. Kf5 {[%emt 0:00:30]} Kd6 {[%emt 0:00:00]} 54. Kf6 {[%emt 0:00:00]} Kd5 {[%emt 0:00:00]} 1/2-1/2

[Event "Turkish Club Cup 2019"]
[Site "Konya"]
[Date "2019.07.19"]
[Round "6"]
[White "Toren, Kadir"]
[Black "Saridag, Omer Melih"]
[Result "1/2-1/2"]
[ECO "B45"]
[WhiteElo "1736"]
[BlackElo "1820"]
[Annotator "NA"]
[PlyCount "64"]
[EventDate "2019.07.16"]
[EventType "team-tourn"]
[EventCountry "TUR"]
[SourceTitle "playchess.com"]
[Source "ChessBase"]
[SourceQuality "1"]
[TimeControl "5400+30"]

1. e4 {[%emt 0:00:30]} c5 {[%emt 0:00:30]} 2. Nf3 {[%emt 0:00:30]} e6 {[%emt 0:00:00]} 3. d4 {[%emt 0:00:30]} cxd4 {[%emt 0:00:00]} 4. Nxd4 {[%emt 0:00:00]} Nf6 {[%emt 0:01:30]} 5. Nc3 {[%emt 0:02:00]} Nc6 {[%emt 0:01:30]} 6. Ndb5 {[%emt 0:03:30]} Bb4 {[%emt 0:03:30]} 7. a3 {[%emt 0:03:30]} Bxc3+ {[%emt 0:03:30]} 8. Nxc3 {[%emt 0:06:30]} d5 {[%emt 0:03:30]} 9. exd5 {[%emt 0:00:30]} exd5 {[%emt 0:00:30]} 10. Bd3 {[%emt 0:00:30]} O-O {[%emt 0:02:30]} 11. O-O {[%emt 0:00:30]} d4 {[%emt 0:02:30]} 12. Ne4 {[%emt 0:05:30]} Nxe4 {[%emt 0:00:30]} 13. Bxe4 {[%emt 0:00:00]} Qf6 {[%emt 0:02:30]} 14. Qf3 {[%emt 0:01:00]} Qxf3 {[%emt 0:02:30]} 15. Bxf3 {[%emt 0:00:00]} Bf5 {[%emt 0:00:30]} 16. Bxc6 {[%emt 0:01:00]} bxc6 {[%emt 0:00:30]} 17. c3 {[%emt 0:00:30]} dxc3 {[%emt 0:01:30]} 18. bxc3 a6 {[%emt 0:00:30]} 19. Be3 {[%emt 0:00:00]} Rfd8 {[%emt 0:00:30]} 20. Rfd1 {[%emt 0:00:30]} Bd3 {[%emt 0:01:30]} 21. Bd4 {[%emt 0:01:30]} Bc4 {[%emt 0:00:30]} 22. f3 {[%emt 0:00:30]} Rd5 {[%emt 0:00:30]} 23. Bb6 {[%emt 0:00:30]} Rb8 {[%emt 0:00:30]} 24. Rxd5 {[%emt 0:00:30]} cxd5 {[%emt 0:00:30]} 25. Re1 {[%emt 0:02:30]} Bb5 {[%emt 0:00:30]} 26. Bc5 {[%emt 0:00:30]} Re8 {[%emt 0:00:30]} 27. Re7 {[%emt 0:00:30]} Rxe7 {[%emt 0:00:30]} 28. Bxe7 {[%emt 0:00:30]} f6 {[%emt 0:00:30]} 29. Kf2 {[%emt 0:00:30]} Kf7 {[%emt 0:00:30]} 30. Bc5 {[%emt 0:00:30]} Ke6 {[%emt 0:00:30]} 31. Ke3 {[%emt 0:00:00]} g6 {[%emt 0:00:00]} 32. g4 {[%emt 0:00:00]} Bc4 {[%emt 0:00:00]} 1/2-1/2

[Event "Turkish Club Cup 2019"]
[Site "Konya"]
[Date "2019.07.19"]
[Round "6"]
[White "Kargi, Mert"]
[Black "Keskin, Osman Orcun"]
[Result "1/2-1/2"]
[ECO "A26"]
[WhiteElo "1729"]
[BlackElo "1719"]
[Annotator "NA"]
[PlyCount "101"]
[EventDate "2019.07.16"]
[EventType "team-tourn"]
[EventCountry "TUR"]
[SourceTitle "playchess.com"]
[Source "ChessBase"]
[SourceQuality "1"]
[TimeControl "5400+30"]

1. c4 {[%emt 0:00:30]} Nf6 {[%emt 0:00:30]} 2. Nf3 {[%emt 0:00:00]} g6 {[%emt 0:01:30]} 3. Nc3 {[%emt 0:00:00]} Bg7 {[%emt 0:00:00]} 4. e4 {[%emt 0:01:30]} d6 {[%emt 0:00:00]} 5. g3 {[%emt 0:00:00]} O-O {[%emt 0:00:30]} 6. Bg2 {[%emt 0:00:00]} e5 {[%emt 0:00:30]} 7. O-O {[%emt 0:00:30]} Be6 {[%emt 0:02:30]} 8. d3 {[%emt 0:02:30]} h6 {[%emt 0:01:30]} 9. h3 {[%emt 0:01:30]} Nc6 {[%emt 0:04:30]} 10. Be3 {[%emt 0:02:30]} Nd7 {[%emt 0:03:30]} 11. Qd2 {[%emt 0:07:30]} Kh7 {[%emt 0:00:30]} 12. b3 {[%emt 0:07:30]} f5 {[%emt 0:21:30]} 13. exf5 {[%emt 0:04:30]} gxf5 {[%emt 0:06:30]} 14. d4 {[%emt 0:16:30]} e4 {[%emt 0:18:30]} 15. Ne1 {[%emt 0:06:30]} Qf6 {[%emt 0:05:30]} 16. Nc2 {[%emt 0:04:30]} Bf7 {[%emt 0:05:30]} 17. f3 {[%emt 0:07:30]} exf3 {[%emt 0:05:30]} 18. Rxf3 {[%emt 0:01:30]} Ne7 {[%emt 0:01:24]} 19. g4 {[%emt 0:09:30]} Bg6 {[%emt 0:06:23]} 20. Raf1 {[%emt 0:09:23]} Qe6 {[%emt 0:05:57]} 21. Nb5 {[%emt 0:00:30]} Rac8 {[%emt 0:01:45]} 22. d5 {[%emt 0:01:20]} Qg8 {[%emt 0:01:43]} 23. Ncd4 {[%emt 0:02:04]} a6 {[%emt 0:01:26]} 24. Nc3 {[%emt 0:00:29]} Ne5 {[%emt 0:00:57]} 25. Rf4 {[%emt 0:01:02]} fxg4 {[%emt 0:00:37]} 26. hxg4 {[%emt 0:04:13]} Rxf4 {[%emt 0:00:58]} 27. Rxf4 {[%emt 0:00:27]} Rf8 {[%emt 0:00:17]} 28. Rxf8 {[%emt 0:02:12]} Qxf8 {[%emt 0:00:10]} 29. Ne6 {[%emt 0:00:53]} Nf3+ {[%emt 0:00:34]} 30. Kf2 {[%emt 0:03:36]} Nxd2+ {[%emt 0:00:35]} 31. Nxf8+ {[%emt 0:00:03]} Bxf8 {[%emt 0:00:09]} 32. Bxd2 {[%emt 0:00:11]} Bg7 {[%emt 0:00:00]} 33. Be4 {[%emt 0:01:34]} Bxe4 {[%emt 0:01:16]} 34. Nxe4 {[%emt 0:00:34]} Kg6 {[%emt 0:00:10]} 35. Kf3 {[%emt 0:01:23]} Be5 {[%emt 0:01:06]} 36. Ba5 {[%emt 0:00:43]} b6 {[%emt 0:00:38]} 37. Be1 {[%emt 0:00:01]} Ng8 {[%emt 0:00:53]} 38. Bh4 {[%emt 0:02:45]} Nf6 {[%emt 0:00:21]} 39. Bxf6 {[%emt 0:00:26]} Bxf6 {[%emt 0:00:10]} 40. Nf2 {[%emt 0:00:28]} b5 {[%emt 0:00:50]} 41. Nd3 {[%emt 0:00:11]} Bd4 {[%emt 0:01:12]} 42. Nb4 {[%emt 0:01:04]} bxc4 {[%emt 0:00:20]} 43. Nxa6 {[%emt 0:00:57]} cxb3 {[%emt 0:00:14]} 44. axb3 {[%emt 0:00:07]} Bb6 {[%emt 0:00:06]} 45. Kf4 {[%emt 0:00:05]} Ba5 {[%emt 0:00:30]} 46. b4 {[%emt 0:00:53]} Bb6 {[%emt 0:00:05]} 47. Nb8 {[%emt 0:00:55]} Kf6 {[%emt 0:00:30]} 48. Nc6 {[%emt 0:00:30]} Bf2 {[%emt 0:00:36]} 49. Nd8 {[%emt 0:00:00]} Be1 {[%emt 0:00:18]} 50. Ne6 {[%emt 0:00:39]} Bxb4 {[%emt 0:00:40]} 51. Nxc7 {[%emt 0:00:09]} 1/2-1/2

[Event "Turkish Club Cup 2019"]
[Site "Konya"]
[Date "2019.07.19"]
[Round "6"]
[White "Kazik, Oguz Kagan"]
[Black "Kiziltas, Inanc Vefa"]
[Result "1/2-1/2"]
[ECO "B15"]
[WhiteElo "1706"]
[BlackElo "1858"]
[Annotator "NA"]
[PlyCount "61"]
[EventDate "2019.07.16"]
[EventType "team-tourn"]
[EventCountry "TUR"]
[SourceTitle "playchess.com"]
[Source "ChessBase"]
[SourceQuality "1"]
[TimeControl "5400+30"]

1. e4 {[%emt 0:00:30]} c6 {[%emt 0:00:30]} 2. d4 {[%emt 0:00:00]} d5 {[%emt 0:00:00]} 3. Nc3 {[%emt 0:00:00]} dxe4 {[%emt 0:01:00]} 4. Nxe4 {[%emt 0:00:30]} Nf6 {[%emt 0:00:00]} 5. Ng3 {[%emt 0:01:30]} e5 {[%emt 0:03:00]} 6. Nf3 {[%emt 0:04:30]} exd4 {[%emt 0:06:30]} 7. Qxd4 {[%emt 0:03:30]} Qxd4 {[%emt 0:03:30]} 8. Nxd4 {[%emt 0:00:00]} Bc5 {[%emt 0:02:30]} 9. Ndf5 {[%emt 0:12:00]} O-O {[%emt 0:10:30]} 10. Be3 {[%emt 0:05:30]} Bxe3 {[%emt 0:02:30]} 11. Nxe3 {[%emt 0:02:30]} Be6 {[%emt 0:01:30]} 12. O-O-O {[%emt 0:04:30]} Nbd7 {[%emt 0:00:30]} 13. Bc4 {[%emt 0:01:30]} Nc5 {[%emt 0:00:30]} 14. Bxe6 {[%emt 0:01:30]} Nxe6 {[%emt 0:00:30]} 15. Ngf5 {[%emt 0:00:30]} Ne4 {[%emt 0:01:30]} 16. Rhf1 {[%emt 0:00:30]} g6 {[%emt 0:01:30]} 17. Nd6 {[%emt 0:01:30]} Nxd6 {[%emt 0:01:30]} 18. Rxd6 {[%emt 0:05:30]} Rad8 {[%emt 0:01:30]} 19. Rfd1 {[%emt 0:00:30]} Rxd6 {[%emt 0:00:30]} 20. Rxd6 {[%emt 0:00:30]} Rd8 {[%emt 0:00:00]} 21. Rxd8+ {[%emt 0:00:30]} Nxd8 {[%emt 0:00:00]} 22. Kd2 {[%emt 0:00:30]} Kf8 {[%emt 0:00:30]} 23. Kd3 {[%emt 0:00:00]} Ke7 {[%emt 0:00:30]} 24. Kd4 {[%emt 0:00:00]} Ne6+ {[%emt 0:00:00]} 25. Ke4 {[%emt 0:00:30]} f6 {[%emt 0:00:00]} 26. f4 {[%emt 0:00:30]} b5 {[%emt 0:00:30]} 27. b3 {[%emt 0:00:30]} Kd6 {[%emt 0:01:30]} 28. g3 {[%emt 0:00:00]} f5+ {[%emt 0:00:30]} 29. Kd3 {[%emt 0:00:00]} c5 {[%emt 0:01:30]} 30. c3 {[%emt 0:00:30]} a6 {[%emt 0:00:30]} 31. a3 {[%emt 0:00:30]} 1/2-1/2

[Event "Turkish Club Cup 2019"]
[Site "Konya"]
[Date "2019.07.19"]
[Round "6"]
[White "Sevinc, Mesut"]
[Black "Basaran, Alp"]
[Result "0-1"]
[ECO "A36"]
[WhiteElo "1703"]
[BlackElo "1857"]
[Annotator "NA"]
[PlyCount "98"]
[EventDate "2019.07.16"]
[EventType "team-tourn"]
[EventCountry "TUR"]
[SourceTitle "playchess.com"]
[Source "ChessBase"]
[SourceQuality "1"]
[TimeControl "5400+30"]

1. c4 {[%emt 0:00:30]} Nf6 {[%emt 0:00:30]} 2. g3 {[%emt 0:00:30]} g6 {[%emt 0:00:30]} 3. Bg2 {[%emt 0:00:00]} Bg7 {[%emt 0:00:00]} 4. e4 {[%emt 0:00:00]} d6 {[%emt 0:00:00]} 5. Nc3 {[%emt 0:00:30]} O-O {[%emt 0:00:00]} 6. Nge2 {[%emt 0:00:00]} c5 {[%emt 0:00:00]} 7. O-O {[%emt 0:00:00]} Nc6 {[%emt 0:00:00]} 8. h3 {[%emt 0:01:30]} a6 {[%emt 0:00:00]} 9. a4 {[%emt 0:00:30]} Rb8 {[%emt 0:00:30]} 10. d3 {[%emt 0:01:30]} Ne8 {[%emt 0:00:30]} 11. f4 {[%emt 0:06:30]} Nc7 {[%emt 0:03:30]} 12. Be3 {[%emt 0:04:30]} Nd4 {[%emt 0:02:30]} 13. Rb1 {[%emt 0:02:30]} b5 {[%emt 0:26:30]} 14. b3 {[%emt 0:07:30]} Bd7 {[%emt 0:03:30]} 15. Bd2 {[%emt 0:28:30]} bxc4 {[%emt 0:15:30]} 16. dxc4 {[%emt 0:01:30]} Bc6 {[%emt 0:03:30]} 17. Kh2 {[%emt 0:10:30]} Nce6 {[%emt 0:21:30]} 18. Be3 {[%emt 0:09:30]} f5 {[%emt 0:01:26]} 19. Nd5 {[%emt 0:02:30]} Nxe2 {[%emt 0:01:17]} 20. Qxe2 {[%emt 0:00:00]} Bxd5 {[%emt 0:00:11]} 21. exd5 {[%emt 0:00:00]} Nd4 {[%emt 0:00:23]} 22. Bxd4 {[%emt 0:01:30]} Bxd4 {[%emt 0:00:06]} 23. Rfe1 {[%emt 0:00:30]} Rb7 {[%emt 0:01:04]} 24. h4 {[%emt 0:05:50]} h5 {[%emt 0:00:41]} 25. Red1 {[%emt 0:01:22]} Bf6 {[%emt 0:00:11]} 26. Qe6+ {[%emt 0:00:21]} Kg7 {[%emt 0:00:05]} 27. Qe2 {[%emt 0:02:04]} Qa5 {[%emt 0:00:38]} 28. Qc2 {[%emt 0:00:26]} Rfb8 {[%emt 0:00:55]} 29. Rd3 {[%emt 0:01:11]} Rb4 {[%emt 0:00:04]} 30. Bf3 {[%emt 0:05:21]} Qb6 {[%emt 0:00:08]} 31. Bd1 {[%emt 0:03:41]} Rxa4 {[%emt 0:00:17]} 32. bxa4 {[%emt 0:00:46]} Qxb1 {[%emt 0:00:05]} 33. Rb3 {[%emt 0:00:14]} Rxb3 {[%emt 0:00:47]} 34. Qxb3 {[%emt 0:00:13]} Qc1 {[%emt 0:01:44]} 35. Qd3 {[%emt 0:01:34]} Qb2+ {[%emt 0:01:02]} 36. Qe2 {[%emt 0:00:38]} Qd4 {[%emt 0:01:57]} 37. Kg2 {[%emt 0:00:18]} Kf8 {[%emt 0:00:46]} 38. Kh2 {[%emt 0:00:24]} Ke8 {[%emt 0:00:17]} 39. Kg2 {[%emt 0:00:52]} Kd8 {[%emt 0:00:12]} 40. Qc2 {[%emt 0:00:59]} Kc7 {[%emt 0:00:22]} 41. Qb3 {[%emt 0:01:46]} Qd2+ {[%emt 0:00:15]} 42. Kh3 {[%emt 0:00:44]} Qf2 {[%emt 0:00:51]} 43. Qf3 {[%emt 0:00:55]} Qxf3 {[%emt 0:00:30]} 44. Bxf3 {[%emt 0:00:30]} Kb6 {[%emt 0:00:00]} 45. Kg2 {[%emt 0:01:26]} Ka5 {[%emt 0:00:15]} 46. Kf1 {[%emt 0:00:00]} Kxa4 {[%emt 0:00:09]} 47. Ke2 {[%emt 0:00:00]} Kb4 {[%emt 0:00:28]} 48. Kd3 {[%emt 0:00:03]} Bd4 {[%emt 0:00:08]} 49. g4 {[%emt 0:01:25]} hxg4 {[%emt 0:00:08]} 0-1

[Event "Turkish Club Cup 2019"]
[Site "Konya"]
[Date "2019.07.19"]
[Round "6"]
[White "Adanmis, Ezgi"]
[Black "Dizdar, Didem Dilara"]
[Result "1-0"]
[ECO "C54"]
[WhiteElo "1692"]
[BlackElo "1419"]
[Annotator "NA"]
[PlyCount "101"]
[EventDate "2019.07.16"]
[EventType "team-tourn"]
[EventCountry "TUR"]
[SourceTitle "playchess.com"]
[Source "ChessBase"]
[SourceQuality "1"]
[TimeControl "5400+30"]

1. e4 {[%emt 0:00:30]} e5 {[%emt 0:00:30]} 2. Nf3 {[%emt 0:00:00]} Nc6 {[%emt 0:00:30]} 3. Bc4 {[%emt 0:00:00]} Bc5 {[%emt 0:00:00]} 4. c3 {[%emt 0:02:30]} Bb6 {[%emt 0:05:00]} 5. d3 {[%emt 0:02:30]} Nf6 {[%emt 0:01:30]} 6. O-O {[%emt 0:01:30]} d6 {[%emt 0:00:30]} 7. h3 {[%emt 0:00:30]} a5 {[%emt 0:01:30]} 8. Be3 {[%emt 0:02:30]} Bxe3 {[%emt 0:04:30]} 9. fxe3 {[%emt 0:00:30]} Ne7 {[%emt 0:00:30]} 10. Nbd2 {[%emt 0:07:30]} h6 {[%emt 0:04:30]} 11. Qe1 {[%emt 0:07:30]} g5 {[%emt 0:06:30]} 12. Nxe5 {[%emt 0:03:30]} dxe5 {[%emt 0:03:30]} 13. Rxf6 {[%emt 0:00:00]} Be6 {[%emt 0:05:30]} 14. Bxe6 {[%emt 0:06:00]} fxe6 {[%emt 0:00:30]} 15. Qe2 {[%emt 0:00:30]} Kd7 {[%emt 0:04:30]} 16. Qg4 {[%emt 0:07:30]} Qg8 {[%emt 0:03:30]} 17. Raf1 {[%emt 0:00:30]} Re8 {[%emt 0:01:30]} 18. Nc4 {[%emt 0:01:30]} Nc6 {[%emt 0:00:30]} 19. Qg3 {[%emt 0:00:00]} Rh7 {[%emt 0:08:30]} 20. Nxe5+ {[%emt 0:04:00]} Nxe5 {[%emt 0:00:30]} 21. Qxe5 {[%emt 0:00:30]} b6 {[%emt 0:04:30]} 22. Qb5+ {[%emt 0:05:30]} Kd8 {[%emt 0:00:30]} 23. e5 {[%emt 0:00:30]} h5 {[%emt 0:00:30]} 24. g3 {[%emt 0:02:30]} Qg7 {[%emt 0:05:30]} 25. b4 {[%emt 0:03:30]} h4 {[%emt 0:03:30]} 26. g4 {[%emt 0:00:00]} Qd7 {[%emt 0:02:30]} 27. Qxd7+ {[%emt 0:01:00]} Rxd7 {[%emt 0:01:30]} 28. d4 {[%emt 0:00:30]} axb4 {[%emt 0:00:00]} 29. cxb4 {[%emt 0:00:30]} c5 {[%emt 0:02:00]} 30. bxc5 {[%emt 0:05:30]} bxc5 {[%emt 0:00:30]} 31. Rd1 {[%emt 0:00:30]} Kc7 {[%emt 0:01:30]} 32. Rc1 {[%emt 0:03:30]} Rd5 {[%emt 0:00:30]} 33. Rxc5+ {[%emt 0:03:30]} Rxc5 {[%emt 0:00:30]} 34. dxc5 {[%emt 0:00:30]} Kc6 {[%emt 0:00:30]} 35. Rg6 {[%emt 0:00:30]} Kxc5 {[%emt 0:00:00]} 36. Kf2 {[%emt 0:01:30]} Kd5 {[%emt 0:03:00]} 37. Rxg5 {[%emt 0:01:30]} Ra8 {[%emt 0:00:30]} 38. Rh5 {[%emt 0:00:30]} Ke4 {[%emt 0:03:30]} 39. Rxh4 {[%emt 0:02:30]} Rxa2+ {[%emt 0:00:30]} 40. Kg3 {[%emt 0:00:00]} Re2 {[%emt 0:03:30]} 41. g5+ {[%emt 0:01:00]} Kxe5 {[%emt 0:00:30]} 42. Kf3 {[%emt 0:00:30]} Rh2 {[%emt 0:02:12]} 43. Rh6 {[%emt 0:03:30]} Kf5 {[%emt 0:00:57]} 44. h4 {[%emt 0:00:30]} Rh3+ {[%emt 0:02:04]} 45. Ke2 {[%emt 0:00:30]} Rh2+ {[%emt 0:00:51]} 46. Kd3 {[%emt 0:00:00]} Rh1 {[%emt 0:01:09]} 47. Rf6+ {[%emt 0:04:00]} Ke5 {[%emt 0:00:32]} 48. Rf4 {[%emt 0:00:30]} Rg1 {[%emt 0:07:11]} 49. Ke2 {[%emt 0:00:30]} Rg3 {[%emt 0:02:12]} 50. Kf2 {[%emt 0:00:30]} Rh3 {[%emt 0:00:34]} 51. g6 {[%emt 0:01:11]} 1-0